bitfinex/quotes_BTCUSD_20250831
["timestamp","ask_amount","ask_price","bid_price","bid_amount"]
[1756639190347,0.07797375,108590.0,108580.0,0.79861085]
[1756639191432,0.07897375,108590.0,108580.0,0.79861085]
[1756639192208,0.07995375,108590.0,108580.0,0.79861085]
[1756639192381,0.08095375,108590.0,108580.0,0.79861085]
[1756639193047,0.00364793,108590.0,108580.0,0.98280683]
[1756639195271,0.00364793,108590.0,108580.0,1.38280683]
[1756639196776,0.00364793,108590.0,108580.0,0.98280683]
[1756639197455,0.00364793,108590.0,108580.0,1.38280683]
[1756639197678,0.00364793,108590.0,108580.0,1.38583683]
[1756639199385,0.18782695,108590.0,108580.0,1.03817085]
[1756639199590,0.18782695,108590.0,108580.0,1.19845085]
[1756639200039,0.18782695,108590.0,108580.0,1.38264683]
[1756639200240,0.18782695,108590.0,108580.0,0.99845085]
[1756639200393,0.18782695,108590.0,108580.0,1.18264683]
[1756639201119,0.18782695,108590.0,108580.0,1.03817085]
[1756639201315,0.18880695,108590.0,108580.0,0.63817085]
[1756639201541,0.18880695,108590.0,108580.0,0.61723203]
[1756639201732,0.18880695,108590.0,108580.0,0.77751203]
[1756639202150,0.18880695,108590.0,108580.0,0.79845085]
[1756639207138,0.18782695,108590.0,108580.0,0.79845085]
[1756639208648,0.18880695,108590.0,108580.0,0.79845085]
[1756639209309,0.18782695,108590.0,108580.0,0.79845085]
[1756639216684,0.18782695,108590.0,108580.0,0.80148085]
[1756639218419,0.18782695,108590.0,108580.0,0.80354085]
[1756639220238,0.18782695,108590.0,108580.0,0.63817085]
[1756639220444,0.18782695,108590.0,108580.0,0.74403883]
[1756639222215,0.18782695,108590.0,108580.0,0.74701883]
[1756639224845,0.18782695,108590.0,108580.0,0.74713883]
[1756639226338,0.18782695,108590.0,108580.0,0.74928883]
[1756639227919,0.18782695,108590.0,108580.0,0.54928883]
[1756639228328,0.18782695,108590.0,108580.0,0.34411883]
[1756639229816,0.18782695,108590.0,108580.0,0.34709883]
[1756639231990,0.21550595,108590.0,108580.0,0.34709883]
[1756639233326,0.21550595,108590.0,108580.0,0.34924883]
[1756639238678,0.21550595,108590.0,108580.0,0.34709883]
[1756639238881,0.21550595,108590.0,108580.0,0.39680871]
[1756639239289,0.21550595,108590.0,108580.0,0.39895871]
[1756639240496,0.21550595,108590.0,108580.0,0.39843871]
[1756639241088,0.21550595,108590.0,108580.0,0.39330871]
[1756639241615,0.21550595,108590.0,108580.0,0.39628871]
[1756639241841,0.21550595,108590.0,108580.0,0.39843871]
[1756639242055,0.21394595,108590.0,108580.0,0.39843871]
[1756639257550,0.21394595,108590.0,108580.0,0.32763871]
[1756639259582,0.18626695,108590.0,108580.0,0.52763871]
[1756639260209,0.18626695,108590.0,108580.0,0.71183469]
[1756639260618,0.18626695,108590.0,108580.0,0.52763871]
[1756639264326,0.18626695,108590.0,108580.0,0.36875871]
[1756639264532,0.18626695,108590.0,108580.0,0.52699871]
[1756639264736,0.18626695,108590.0,108580.0,0.36875871]
[1756639264945,0.18626695,108590.0,108580.0,0.52687871]
[1756639283735,0.00208793,108590.0,108580.0,0.91107469]
[1756639284196,0.00208793,108590.0,108580.0,0.93874569]
[1756639284418,0.00208793,108590.0,108580.0,1.33874569]
[1756639286945,0.00208793,108590.0,108580.0,1.34874363]
[1756639293384,0.00920725,108610.0,108600.0,0.4]
[1756639293589,0.19494385,108610.0,108600.0,0.74255671]
[1756639294764,0.19794385,108610.0,108600.0,0.74255671]
[1756639295637,0.20094385,108610.0,108600.0,0.74255671]
[1756639296072,0.19938385,108610.0,108600.0,0.74255671]
[1756639298524,0.20094385,108610.0,108600.0,0.74255671]
[1756639299313,0.20094385,108610.0,108600.0,0.74231671]
[1756639299511,0.20094385,108610.0,108600.0,0.57986671]
[1756639299718,0.20094385,108610.0,108600.0,0.73698671]
[1756639305766,0.20094385,108610.0,108600.0,0.74015671]
[1756639307268,0.20094385,108610.0,108600.0,0.58303671]
[1756639307445,0.20094385,108610.0,108600.0,0.73991671]
[1756639309384,0.20094385,108610.0,108600.0,0.74207671]
[1756639312239,0.20094385,108610.0,108600.0,0.74207671]
[1756639317425,0.19938385,108610.0,108600.0,0.74207671]
[1756639320603,0.19938385,108610.0,108600.0,0.58519671]
[1756639320805,0.20094385,108610.0,108600.0,0.33618671]
[1756639321600,0.20094385,108610.0,108600.0,0.35712553]
[1756639321794,0.20094385,108610.0,108600.0,0.33618671]
[1756639322228,0.22861785,108610.0,108600.0,0.35712553]
[1756639323635,0.22861785,108610.0,108600.0,0.20080553]
[1756639323835,0.56861785,108610.0,108600.0,0.35708553]
[1756639325018,0.56861785,108610.0,108600.0,0.20080553]
[1756639325266,0.56861785,108610.0,108600.0,0.35708553]
[1756639327508,0.56959785,108610.0,108600.0,0.35704553]
[1756639327716,0.56861785,108610.0,108600.0,0.35704553]
[1756639329326,0.56861785,108610.0,108600.0,0.20080553]
[1756639329689,0.56959785,108610.0,108600.0,0.35696553]
[1756639329891,0.56959785,108610.0,108600.0,0.16378001]
[1756639330092,0.56959785,108610.0,108600.0,0.31990001]
[1756639332156,0.56861785,108610.0,108600.0,0.31990001]
[1756639337165,0.56861785,108610.0,108600.0,0.32299001]
[1756639340101,0.56861785,108610.0,108600.0,0.31990001]
[1756639340327,0.56861785,108610.0,108600.0,0.35221301]
[1756639341062,0.56861785,108610.0,108600.0,0.35544301]
[1756639343983,0.56861785,108610.0,108600.0,0.35757301]
[1756639345631,0.375234,108610.0,108600.0,0.35757301]
[1756639345850,0.38444125,108610.0,108600.0,0.35757301]
[1756639346280,0.56861785,108610.0,108600.0,0.35757301]
[1756639346869,0.56705785,108610.0,108600.0,0.35757301]
[1756639350594,0.56861785,108610.0,108600.0,0.35757301]
[1756639351851,0.38338852,108610.0,108600.0,0.35757301]
[1756639352045,0.22262085,108610.0,108600.0,0.35757301]
[1756639356188,0.56262085,108610.0,108600.0,0.35757301]
[1756639356387,0.56106085,108610.0,108600.0,0.35757301]
[1756639363994,0.56106085,108610.0,108600.0,0.28677301]
[1756639365204,0.56262085,108610.0,108600.0,0.28637301]
[1756639365439,0.56262085,108610.0,108600.0,0.28101301]
[1756639365804,0.56262085,108610.0,108600.0,0.28424301]
[1756639366003,0.56262085,108610.0,108600.0,0.25193001]
[1756639367220,0.56262085,108610.0,108600.0,0.25406001]
[1756639367637,0.56106085,108610.0,108600.0,0.25406001]
[1756639377106,0.56262085,108610.0,108600.0,0.25406001]
[1756639382972,0.56106085,108610.0,108600.0,0.25406001]
[1756639383418,0.56106085,108610.0,108600.0,0.28654601]
[1756639385616,0.56106085,108610.0,108600.0,0.30748483]
[1756639406833,0.56262085,108610.0,108600.0,0.30748483]
[1756639407040,0.56262085,108610.0,108600.0,0.30208483]
[1756639408214,0.56262085,108610.0,108600.0,0.30511483]
[1756639409976,0.56262085,108610.0,108600.0,0.30208483]
[1756639410721,0.56262085,108610.0,108600.0,0.30511483]
[1756639412067,0.56262085,108610.0,108600.0,0.30718483]
[1756639412263,0.56262085,108610.0,108600.0,0.30208483]
[1756639414169,0.56262085,108610.0,108600.0,0.30511483]
[1756639414964,0.56262085,108610.0,108600.0,0.30208483]
[1756639415279,0.56262085,108610.0,108600.0,0.30718483]
[1756639419652,0.56106085,108610.0,108600.0,0.30718483]
[1756639419984,0.56262085,108610.0,108600.0,0.30718483]
[1756639425209,0.56106085,108610.0,108600.0,0.30718483]
[1756639425974,0.34186055,108610.0,108600.0,0.30718483]
[1756639426194,0.11614786,108610.0,108600.0,0.30718483]
[1756639426387,0.18567235,108610.0,108600.0,0.30718483]
[1756639426606,0.2118506,108610.0,108600.0,0.30718483]
[1756639426824,0.22105785,108610.0,108600.0,0.30718483]
[1756639428583,0.56110555,108610.0,108600.0,0.30718483]
[1756639432661,0.56266555,108610.0,108600.0,0.14640483]
[1756639432864,0.56364555,108610.0,108600.0,0.30204483]
[1756639433383,0.56364555,108610.0,108600.0,0.26955883]
[1756639433602,0.56364555,108610.0,108600.0,0.11391883]
[1756639433844,0.56266555,108610.0,108600.0,0.26955883]
[1756639439551,0.56266555,108610.0,108600.0,0.27452883]
[1756639439729,0.56266555,108610.0,108600.0,0.26955883]
[1756639442013,0.56266555,108610.0,108600.0,0.30389571]
[1756639442220,0.56266555,108610.0,108600.0,0.27256883]
[1756639442414,0.56266555,108610.0,108600.0,0.26955883]
[1756639442623,0.56266555,108610.0,108600.0,0.11391883]
[1756639442925,0.52416206,108600.0,108590.0,0.0708]
[1756639443058,0.52572206,108600.0,108590.0,0.31942001]
[1756639443277,0.52572206,108600.0,108590.0,0.35166301]
[1756639443472,0.55340006,108600.0,108590.0,0.35166301]
[1756639443924,0.55340006,108600.0,108590.0,0.35467301]
[1756639444095,0.55340006,108600.0,108590.0,0.35663301]
[1756639445379,0.55440006,108600.0,108590.0,0.35663301]
[1756639445555,0.55540006,108600.0,108590.0,0.35663301]
[1756639446330,0.55540006,108600.0,108590.0,0.32439001]
[1756639446732,0.55540006,108600.0,108590.0,0.22644]
[1756639447253,0.55540006,108600.0,108590.0,0.22945]
[1756639448466,0.55540006,108600.0,108590.0,0.23141]
[1756639449822,0.55540006,108600.0,108590.0,0.22945]
[1756639452304,0.55540006,108600.0,108590.0,0.22644]
[1756639453361,0.55540006,108600.0,108590.0,0.22945]
[1756639456431,0.55540006,108600.0,108590.0,0.23141]
[1756639462197,0.55265472,108600.0,108590.0,0.23141]
[1756639464569,0.55109472,108600.0,108590.0,0.254551]
[1756639469088,0.55109472,108600.0,108590.0,0.2531779]
[1756639470592,0.3611321,108600.0,108590.0,0.2531779]
[1756639470804,0.54529416,108600.0,108590.0,0.2531779]
[1756639476483,0.54529416,108600.0,108590.0,0.183751]
[1756639479667,0.54685416,108600.0,108590.0,0.183751]
[1756639481571,0.54529416,108600.0,108590.0,0.183751]
[1756639484609,0.54685416,108600.0,108590.0,0.183751]
[1756639485315,0.54529416,108600.0,108590.0,0.183751]
[1756639492902,0.54685416,108600.0,108590.0,0.183751]
[1756639493526,0.54685416,108600.0,108590.0,0.29766983]
[1756639493527,0.54529416,108600.0,108590.0,0.29766983]
[1756639504077,0.54529416,108600.0,108590.0,0.14202983]
[1756639504516,0.54685416,108600.0,108590.0,0.29750983]
[1756639505542,0.54529416,108600.0,108590.0,0.29750983]
[1756639511432,0.54685416,108600.0,108590.0,0.29750983]
[1756639513246,0.54529416,108600.0,108590.0,0.29746983]
[1756639524521,0.54529416,108600.0,108590.0,0.36826983]
[1756639528431,0.54685416,108600.0,108590.0,0.36826983]
[1756639528837,0.54685416,108600.0,108590.0,0.36822983]
[1756639529059,0.54529416,108600.0,108590.0,0.36822983]
[1756639529622,0.54529416,108600.0,108590.0,0.36733813]
[1756639531809,0.51969616,108600.0,108590.0,0.36733813]
[1756639533167,0.51749668,108600.0,108590.0,0.36733813]
[1756639533502,0.51957668,108600.0,108590.0,0.36733813]
[1756639537899,0.51749668,108600.0,108590.0,0.36733813]
[1756639538320,0.18616206,108600.0,108590.0,0.51733813]
[1756639538524,0.18616206,108600.0,108590.0,0.90151715]
[1756639538941,0.18616206,108600.0,108590.0,0.92918915]
[1756639539610,0.002,108600.0,108590.0,1.07918915]
[1756639539795,0.18616206,108600.0,108590.0,1.07918915]
[1756639540207,0.001,108600.0,108590.0,1.07918915]
[1756639540413,0.002,108600.0,108590.0,1.07918915]
[1756639540587,0.001,108600.0,108590.0,1.07918915]
[1756639540968,0.002,108600.0,108590.0,1.07918915]
[1756639541534,0.001,108600.0,108590.0,1.07918915]
[1756639541732,0.001,108600.0,108590.0,1.08218915]
[1756639541962,0.001,108600.0,108590.0,1.48218915]
[1756639542208,0.19343155,108610.0,108600.0,0.22093882]
[1756639542387,0.19343155,108610.0,108600.0,0.35852441]
[1756639542567,0.19343155,108610.0,108600.0,0.36155441]
[1756639542971,0.19343155,108610.0,108600.0,0.38922441]
[1756639545201,0.19343155,108610.0,108600.0,0.39122441]
[1756639552202,0.19343155,108610.0,108600.0,0.54658441]
[1756639579058,0.19343155,108610.0,108600.0,0.39122441]
[1756639579279,0.19343155,108610.0,108600.0,0.54654441]
[1756639582139,0.19343155,108610.0,108600.0,0.39122441]
[1756639582350,0.19541155,108610.0,108600.0,0.54156441]
[1756639582524,0.19541155,108610.0,108600.0,0.51389441]
[1756639582848,0.19541155,108610.0,108600.0,0.27123883]
[1756639582849,0.19728155,108610.0,108600.0,0.27123883]
[1756639583050,0.19728155,108610.0,108600.0,0.25030001]
[1756639583251,0.19728155,108610.0,108600.0,0.27123883]
[1756639584805,0.53728155,108610.0,108600.0,0.25030001]
[1756639585008,0.53728155,108610.0,108600.0,0.27123883]
[1756639585731,0.56495655,108610.0,108600.0,0.27123883]
[1756639589722,0.38077995,108610.0,108600.0,0.32544271]
[1756639590163,0.56495655,108610.0,108600.0,0.32544271]
[1756639594321,0.56495655,108610.0,108600.0,0.17012271]
[1756639594530,0.56495655,108610.0,108600.0,0.32544271]
[1756639595570,0.56495655,108610.0,108600.0,0.27123883]
[1756639600796,0.56495655,108610.0,108600.0,0.15732]
[1756639605863,0.56308655,108610.0,108600.0,0.15732]
[1756639607270,0.56308655,108610.0,108600.0,0.16244]
[1756639607666,0.56308655,108610.0,108600.0,0.15732]
[1756639607826,0.56308655,108610.0,108600.0,0.16244]
[1756639609062,0.56308655,108610.0,108600.0,0.185764]
[1756639610344,0.56308655,108610.0,108600.0,0.16244]
[1756639610564,0.56308655,108610.0,108600.0,0.15732]
[1756639615397,0.56308655,108610.0,108600.0,0.16251]
[1756639620234,0.56308655,108610.0,108600.0,0.15732]
[1756639620855,0.56308655,108610.0,108600.0,1e-08]
[1756639621524,0.52416206,108600.0,108590.0,0.09486882]
[1756639621760,0.52416206,108600.0,108590.0,0.34312883]
[1756639622027,0.52416206,108600.0,108590.0,0.34518883]
[1756639622236,0.55183906,108600.0,108590.0,0.34518883]
[1756639623192,0.55183906,108600.0,108590.0,0.34618883]
[1756639623743,0.55183906,108600.0,108590.0,0.34718883]
[1756639624822,0.55183906,108600.0,108590.0,0.19190883]
[1756639625004,0.55381906,108600.0,108590.0,0.34718883]
[1756639625340,0.55381906,108600.0,108590.0,0.19190883]
[1756639625553,0.55381906,108600.0,108580.0,0.04957436]
[1756639625554,0.18417902,108590.0,108580.0,0.04957436]
[1756639625769,0.18417902,108590.0,108580.0,0.34693181]
[1756639626174,0.21185802,108590.0,108580.0,0.34693181]
[1756639627031,0.21285802,108590.0,108580.0,0.34693181]
[1756639627596,0.21285802,108590.0,108580.0,0.35006181]
[1756639629154,0.21285802,108590.0,108580.0,0.30302437]
[1756639629549,0.21496802,108590.0,108580.0,0.30302437]
[1756639631336,0.21285802,108590.0,108580.0,0.30302437]
[1756639631922,0.21496802,108590.0,108580.0,0.29989437]
[1756639632918,0.21285802,108590.0,108580.0,0.30302437]
[1756639635790,0.21496802,108590.0,108580.0,0.30302437]
[1756639639429,0.21285802,108590.0,108580.0,0.30302437]
[1756639647491,0.21824802,108590.0,108580.0,0.29989437]
[1756639647732,0.21501802,108590.0,108580.0,0.29989437]
[1756639648648,0.21501802,108590.0,108580.0,0.30300437]
[1756639649702,0.21285802,108590.0,108580.0,0.30300437]
[1756639672627,0.21496802,108590.0,108580.0,0.30300437]
[1756639673927,0.21285802,108590.0,108580.0,0.30300437]
[1756639675390,0.21496802,108590.0,108580.0,0.30300437]
[1756639679867,0.21496802,108590.0,108580.0,0.29989437]
[1756639680092,0.21803802,108590.0,108580.0,0.29783437]
[1756639681165,0.21803802,108590.0,108580.0,0.29987437]
[1756639684326,0.21496802,108590.0,108580.0,0.29987437]
[1756639684990,0.51916445,108600.0,108580.0,0.30291437]
[1756639685275,0.18567477,108590.0,108580.0,0.30291437]
[1756639685485,0.18417902,108590.0,108580.0,0.30291437]
[1756639685656,0.18628902,108590.0,108580.0,0.30291437]
[1756639687898,0.18728902,108590.0,108580.0,0.30291437]
[1756639690862,0.18728902,108590.0,108580.0,0.29987437]
[1756639696007,0.18728902,108590.0,108580.0,0.37067437]
[1756639704325,0.18728902,108590.0,108580.0,0.37361437]
[1756639707845,0.18517902,108590.0,108580.0,0.37361437]
[1756639708051,0.18497778,108590.0,108580.0,0.37361437]
[1756639708471,0.18497778,108590.0,108580.0,0.40129137]
[1756639718004,0.18497778,108590.0,108580.0,0.24601137]
[1756639718005,0.18704778,108590.0,108580.0,0.24601137]
[1756639718173,0.18497778,108590.0,108580.0,0.40109137]
[1756639720936,0.18704778,108590.0,108580.0,0.40109137]
[1756639721171,0.18497778,108590.0,108580.0,0.40109137]
[1756639722053,0.18704778,108590.0,108580.0,0.40109137]
[1756639722254,0.18704778,108590.0,108580.0,0.24307137]
[1756639722456,0.18704778,108590.0,108580.0,0.39815137]
[1756639723955,0.18704778,108590.0,108580.0,0.40109137]
[1756639725158,0.19004778,108590.0,108580.0,0.39815137]
[1756639725589,0.18704778,108590.0,108580.0,0.39815137]
[1756639726949,0.18704778,108590.0,108580.0,0.40109137]
[1756639727146,0.19004778,108590.0,108580.0,0.39815137]
[1756639727317,0.19004778,108590.0,108580.0,0.36843437]
[1756639728937,0.18497778,108590.0,108580.0,0.37039437]
[1756639729068,0.19004778,108590.0,108580.0,0.37039437]
[1756639729708,0.19004778,108590.0,108580.0,0.36927537]
[1756639732983,0.19004778,108590.0,108580.0,0.39695337]
[1756639734505,0.19004778,108590.0,108580.0,0.32615337]
[1756639736252,0.18704778,108590.0,108580.0,0.32615337]
[1756639738101,0.18704778,108590.0,108580.0,0.32927337]
[1756639738316,0.18704778,108590.0,108580.0,0.32615337]
[1756639739881,0.19015778,108590.0,108580.0,0.32615337]
[1756639740083,0.18704778,108590.0,108580.0,0.32615337]
[1756639740283,0.19015778,108590.0,108580.0,0.32615337]
[1756639741981,0.18704778,108590.0,108580.0,0.32927337]
[1756639742208,0.18704778,108590.0,108580.0,0.32615337]
[1756639742431,0.19015778,108590.0,108580.0,0.32615337]
[1756639744735,0.18713778,108590.0,108580.0,0.32615337]
[1756639745703,0.19024778,108590.0,108580.0,0.32615337]
[1756639745909,0.18497778,108590.0,108580.0,0.32927337]
[1756639746156,0.18713778,108590.0,108580.0,0.32615337]
[1756639746741,0.19024778,108590.0,108580.0,0.32615337]
[1756639747150,0.18713778,108590.0,108580.0,0.32615337]
[1756639747558,0.19024778,108590.0,108580.0,0.32615337]
[1756639748157,0.18713778,108590.0,108580.0,0.32927337]
[1756639748367,0.19024778,108590.0,108580.0,0.32615337]
[1756639748978,0.18713778,108590.0,108580.0,0.32615337]
[1756639749380,0.19024778,108590.0,108580.0,0.32615337]
[1756639751120,0.18713778,108590.0,108580.0,0.32615337]
[1756639751460,0.19024778,108590.0,108580.0,0.32615337]
[1756639752131,0.18713778,108590.0,108580.0,0.32927337]
[1756639752548,0.18713778,108590.0,108580.0,0.32615337]
[1756639753369,0.18497778,108590.0,108580.0,0.32927337]
[1756639754254,0.50081971,108600.0,108590.0,0.02093882]
[1756639754462,0.50297971,108600.0,108590.0,0.02093882]
[1756639754678,0.50297971,108600.0,108590.0,0.05367016]
[1756639756183,0.50497971,108600.0,108590.0,0.05367016]
[1756639756627,0.50597971,108600.0,108590.0,0.05367016]
[1756639757952,0.53365771,108600.0,108590.0,0.05367016]
[1756639759259,0.52838771,108600.0,108590.0,0.05583016]
[1756639759462,0.53054771,108600.0,108590.0,0.05583016]
[1756639759655,0.53365771,108600.0,108590.0,0.05367016]
[1756639760087,0.53365771,108600.0,108590.0,0.05562016]
[1756639760293,0.53365771,108600.0,108590.0,0.05367016]
[1756639762165,0.53054771,108600.0,108590.0,0.05885016]
[1756639762375,0.53054771,108600.0,108590.0,0.05562016]
[1756639762575,0.53347771,108600.0,108590.0,0.05562016]
[1756639765301,0.50070971,108600.0,108590.0,0.1541324]
[1756639765732,0.50070971,108600.0,108590.0,0.1818084]
[1756639765956,0.50070971,108600.0,108590.0,0.25030617]
[1756639768918,0.16070971,108600.0,108590.0,0.25030617]
[1756639769511,0.16070971,108600.0,108590.0,0.45030617]
[1756639771448,0.16277971,108600.0,108590.0,0.44707617]
[1756639771929,0.16277971,108600.0,108590.0,0.45030617]
[1756639773512,0.16277971,108600.0,108590.0,0.49083785]
[1756639774411,0.19636155,108610.0,108590.0,0.49083785]
[1756639774412,0.18158611,108610.0,108590.0,0.49083785]
[1756639774628,0.18416206,108600.0,108590.0,0.39785784]
[1756639774838,0.18416206,108600.0,108590.0,0.64763785]
[1756639775802,0.18623206,108600.0,108590.0,0.44440785]
[1756639775988,0.18916206,108600.0,108590.0,0.44245785]
[1756639776459,0.18723206,108600.0,108590.0,0.44440785]
[1756639776686,0.18723206,108600.0,108590.0,0.44763785]
[1756639777612,0.18723206,108600.0,108590.0,0.40383617]
[1756639777820,0.18723206,108600.0,108590.0,0.40188617]
[1756639778279,0.18723206,108600.0,108590.0,0.37616017]
[1756639778534,0.18723206,108600.0,108590.0,0.37620017]
[1756639779977,0.18723206,108600.0,108590.0,0.40387617]
[1756639780180,0.18723206,108600.0,108590.0,0.40710617]
[1756639783715,0.18516206,108600.0,108590.0,0.40710617]
[1756639784309,0.18516206,108600.0,108590.0,0.74128519]
[1756639784310,0.001,108600.0,108590.0,0.74128519]
[1756639784685,0.001,108600.0,108590.0,0.94128519]
[1756639785337,0.001,108600.0,108590.0,1.09128519]
[1756639786120,0.001,108600.0,108590.0,1.43128519]
[1756639786306,0.1937665,108630.0,108620.0,0.20506697]
[1756639786509,0.00044769,108630.0,108620.0,0.55899222]
[1756639786718,0.00044769,108630.0,108620.0,0.56417222]
[1756639786934,0.00044769,108630.0,108620.0,0.59183722]
[1756639787132,0.00044769,108630.0,108620.0,0.63425308]
[1756639787340,0.00044769,108630.0,108620.0,1.02425308]
[1756639787541,0.0004,108640.0,108630.0,0.95505002]
[1756639787743,0.0004,108640.0,108630.0,1.08399137]
[1756639787990,0.0004,108640.0,108630.0,1.82594137]
[1756639788487,0.0004,108640.0,108630.0,1.83544121]
[1756639789073,0.0004,108640.0,108630.0,1.83744121]
[1756639789813,0.0004,108640.0,108630.0,1.83682121]
[1756639790227,0.0004,108640.0,108630.0,1.88682121]
[1756639790482,0.0004,108640.0,108630.0,1.89182121]
[1756639791121,0.0004,108650.0,108640.0,0.64503307]
[1756639791341,0.00044769,108650.0,108640.0,0.99935832]
[1756639791529,0.00044769,108650.0,108640.0,1.00596832]
[1756639791863,0.00044769,108650.0,108640.0,1.24848832]
[1756639791864,1e-08,108650.0,108640.0,1.24848832]
[1756639792086,1e-08,108650.0,108640.0,1.40596832]
[1756639792741,1e-08,108650.0,108640.0,1.41096832]
[1756639792966,1e-08,108650.0,108640.0,1.76100832]
[1756639793419,1e-08,108650.0,108640.0,2.02846832]
[1756639794070,1e-08,108650.0,108640.0,2.02346832]
[1756639794290,1e-08,108650.0,108640.0,2.02946832]
[1756639794503,1e-08,108650.0,108640.0,2.03646832]
[1756639794947,1e-08,108650.0,108640.0,2.03046832]
[1756639795179,1e-08,108650.0,108640.0,2.03546832]
[1756639795383,1e-08,108650.0,108640.0,1.76796832]
[1756639795595,1e-08,108650.0,108640.0,1.77165532]
[1756639795805,1e-08,108650.0,108640.0,1.61417532]
[1756639796059,1e-08,108650.0,108640.0,1.77185532]
[1756639796715,1e-08,108650.0,108640.0,1.61417532]
[1756639796935,1e-08,108650.0,108640.0,1.77189532]
[1756639798542,0.0004,108660.0,108650.0,0.94501613]
[1756639798791,0.00087698,108660.0,108650.0,1.45408748]
[1756639799009,0.00087698,108660.0,108650.0,1.24849748]
[1756639799225,0.00087698,108660.0,108650.0,1.46862848]
[1756639799446,0.00087698,108660.0,108650.0,1.79000966]
[1756639799663,0.00288698,108660.0,108650.0,1.94764966]
[1756639799895,0.00288698,108660.0,108650.0,1.97458848]
[1756639800340,0.00613698,108660.0,108650.0,1.47171848]
[1756639800559,0.00613698,108660.0,108650.0,1.62935848]
[1756639800778,0.00463698,108660.0,108650.0,1.62935848]
[1756639801257,0.00463698,108660.0,108650.0,1.63335848]
[1756639801697,0.00463698,108660.0,108650.0,1.46571848]
[1756639801910,0.00463698,108660.0,108650.0,1.62635848]
[1756639802344,0.00463698,108660.0,108650.0,1.63135848]
[1756639802799,0.00463698,108660.0,108650.0,1.23135848]
[1756639803222,0.00138698,108660.0,108650.0,1.23135848]
[1756639803433,0.00138698,108660.0,108650.0,1.23344848]
[1756639803884,0.0004,108670.0,108660.0,0.20499919]
[1756639804101,0.00241,108670.0,108660.0,0.48860444]
[1756639804310,0.00241,108670.0,108660.0,0.49069444]
[1756639804737,0.00241,108670.0,108660.0,0.49383444]
[1756639805172,0.00241,108670.0,108660.0,0.56659444]
[1756639805389,0.00241,108670.0,108660.0,0.56959444]
[1756639806044,0.00241,108670.0,108660.0,0.56645444]
[1756639806273,0.00566,108670.0,108660.0,0.56436444]
[1756639806494,0.18970343,108670.0,108660.0,0.56436444]
[1756639806731,0.18970343,108670.0,108660.0,0.60674495]
[1756639806946,0.18970343,108670.0,108660.0,0.23185934]
[1756639807149,0.18970343,108670.0,108660.0,0.38969934]
[1756639809814,0.19923354,108670.0,108660.0,0.38969934]
[1756639810763,0.19923354,108670.0,108660.0,0.41735534]
[1756639811543,0.19923354,108670.0,108660.0,0.25951534]
[1756639811759,0.19923354,108670.0,108660.0,0.41723534]
[1756639813238,0.19923354,108670.0,108660.0,0.61723534]
[1756639815508,0.15809347,108680.0,108660.0,0.61723534]
[1756639815714,0.50818928,108680.0,108670.0,0.11391883]
[1756639815915,0.50669353,108680.0,108670.0,0.11391883]
[1756639817185,0.50669353,108680.0,108670.0,0.11591883]
[1756639818088,0.50669353,108680.0,108670.0,0.11691883]
[1756639818915,0.49809347,108680.0,108670.0,0.12005883]
[1756639819551,0.50732855,108680.0,108670.0,0.12005883]
[1756639819955,0.50732855,108680.0,108670.0,0.11691883]
[1756639824705,0.50732855,108680.0,108670.0,0.11995883]
[1756639825745,0.50732855,108680.0,108670.0,0.12192883]
[1756639826083,0.50732855,108680.0,108670.0,0.11995883]
[1756639826866,0.50732855,108680.0,108670.0,0.12192883]
[1756639827761,0.50732855,108680.0,108670.0,0.11995883]
[1756639828656,0.50732855,108680.0,108670.0,0.12192883]
[1756639828868,0.50732855,108680.0,108670.0,0.11695883]
[1756639829279,0.50932855,108680.0,108670.0,0.11892883]
[1756639829673,0.50732855,108680.0,108670.0,0.11892883]
[1756639831063,0.50832855,108680.0,108670.0,0.11892883]
[1756639831273,0.50932855,108680.0,108670.0,0.11892883]
[1756639832447,0.50009347,108680.0,108670.0,0.12122937]
[1756639839989,0.50009347,108680.0,108670.0,0.32122937]
[1756639840220,0.16009347,108680.0,108670.0,0.31892883]
[1756639840487,0.16009347,108680.0,108670.0,0.46892883]
[1756639845003,0.16009347,108680.0,108670.0,0.65297226]
[1756639845195,0.15909347,108680.0,108670.0,0.65297226]
[1756639845389,0.15809347,108680.0,108670.0,0.65297226]
[1756639845536,0.16009347,108680.0,108670.0,0.65297226]
[1756639845733,0.15909347,108680.0,108670.0,0.65297226]
[1756639846211,0.15909347,108680.0,108670.0,0.65397226]
[1756639847051,0.15809347,108680.0,108670.0,0.46992883]
[1756639847183,0.15809347,108680.0,108670.0,0.62712883]
[1756639849362,0.15809347,108680.0,108670.0,0.46992883]
[1756639849581,0.15809347,108680.0,108670.0,0.62704883]
[1756639850560,0.15809347,108680.0,108670.0,0.62700883]
[1756639852944,0.15809347,108680.0,108670.0,0.81105226]
[1756639853155,0.15809347,108680.0,108670.0,0.82045691]
[1756639853522,0.15809347,108680.0,108670.0,0.62700883]
[1756639853968,0.19321027,108690.0,108680.0,0.22093882]
[1756639854167,0.18415281,108690.0,108680.0,0.50101532]
[1756639854369,0.18415281,108690.0,108680.0,0.50299532]
[1756639855207,0.18515281,108690.0,108680.0,0.50299532]
[1756639855843,0.18615281,108690.0,108680.0,0.50299532]
[1756639857108,0.00214301,108690.0,108680.0,0.50299532]
[1756639857278,0.00114301,108690.0,108680.0,0.50299532]
[1756639857683,0.00214301,108690.0,108680.0,0.50299532]
[1756639858238,0.00114301,108690.0,108680.0,0.50299532]
[1756639858578,0.00114301,108690.0,108680.0,0.90299532]
[1756639858779,0.00014301,108690.0,108680.0,0.90299532]
[1756639859205,0.00014301,108690.0,108680.0,0.90399532]
[1756639860447,0.18415257,108690.0,108680.0,0.71996883]
[1756639860812,0.18415257,108690.0,108680.0,0.87720883]
[1756639861451,0.18415257,108690.0,108680.0,1.06123532]
[1756639862439,0.00014301,108690.0,108680.0,1.06123532]
[1756639865094,0.00014301,108690.0,108680.0,1.08888132]
[1756639870129,0.00014301,108690.0,108680.0,1.08892132]
[1756639872380,0.00014301,108690.0,108680.0,1.08896132]
[1756639875727,0.00014301,108690.0,108680.0,1.35646132]
[1756639878497,0.00014301,108690.0,108680.0,1.34914132]
[1756639878711,0.18415257,108690.0,108680.0,1.15650132]
[1756639878943,0.18415257,108690.0,108680.0,1.50650132]
[1756639879672,0.00014301,108690.0,108680.0,1.50650132]
[1756639881572,0.18415257,108690.0,108680.0,1.50650132]
[1756639882844,0.18415257,108690.0,108680.0,1.15650132]
[1756639883018,0.18415257,108690.0,108680.0,1.50650132]
[1756639883464,0.18415257,108690.0,108680.0,1.15650132]
[1756639883886,0.18415257,108690.0,108680.0,1.50650132]
[1756639884438,0.18415257,108690.0,108680.0,1.15650132]
[1756639884839,0.18415257,108690.0,108680.0,1.50650132]
[1756639885439,0.18415257,108690.0,108680.0,1.15650132]
[1756639885636,0.18415257,108690.0,108680.0,1.50650132]
[1756639887598,0.18415257,108690.0,108680.0,1.11004132]
[1756639887801,0.18415257,108690.0,108680.0,1.46004132]
[1756639888350,0.18415257,108690.0,108680.0,1.11004132]